Cogmind - Beta 13 @@@ ROGUE MODE // 2024.04.14 @ 16:43:54 Player: iwantthegold Result: Destroyed by G-34 Mercenary with Small Laser Performance ------------- Evolutions (0) 0 Regions Visited (2) 400 Robots Destroyed (0) 0 Value Destroyed (0) 0 Prototype IDs (0) 0 Alien Tech Used (0) 0 Bonus (0) 0 TOTAL SCORE: 400 Bonus ------- None Cogmind --------- Core Integrity 0/250 Matter 208/300 Energy 69/100 System Corruption 4% Temperature Cool (36) Movement Core (50) Location -10/Mines Parts ------- > --- POWER (1) -------- (None) > --- PROPULSION (2) --- (None) > --- UTILITY (2) ------ (None) > --- WEAPON (2) ------- Light Assault Rifle > --- INVENTORY (5) ---- Light Treads Light Treads Aluminum Leg Aluminum Leg Medium Laser Peak State ------------ > --- POWER ------------ Light Ion Engine > --- PROPULSION ------- Compact Wheel Compact Wheel > --- UTILITY ---------- Small Storage Unit Visual Processing Unit > --- WEAPON ----------- Light Assault Rifle Rocket Launcher > --- INVENTORY -------- Light Ion Engine Light Treads Light Treads Aluminum Leg Aluminum Leg Medium Laser Small Laser Light Assault Rifle [Rating: 9] Favorites ----------- Power Light Ion Engine Engine Light Ion Engine Propulsion Compact Wheel Wheel Compact Wheel Utility Small Storage Unit Storage Small Storage Unit Processor Visual Processing Unit Weapon Light Assault Rifle Energy Gun Small Laser Ballistic Gun Light Assault Rifle Launcher Rocket Launcher Build | -11 -10 -10 ------- Run | Yrd Mat Min Slots Evolved . | . . . Power . | . . . Propulsion . | . . . Utility . | . . . Weapon . | . . . Parts Attached 11 | 6 1 4 Power 2 | 1 . 1 Engine 2 | 1 . 1 Core . | . . . Reactor . | . . . Propulsion 2 | 2 . . Treads . | . . . Leg . | . . . Wheel 2 | 2 . . Hover . | . . . Flight . | . . . Utility 2 | 1 1 . Device . | . . . Storage 1 | 1 . . Processor 1 | . 1 . Hackware . | . . . Protection . | . . . Artifact . | . . . Weapon 5 | 2 . 3 Energy Gun 1 | . . 1 Energy Cannon . | . . . Ballistic Gun 3 | 2 . 1 Ballistic Cannon . | . . . Launcher 1 | . . 1 Special Weapon . | . . . Impact Weapon . | . . . Slashing Weapon . | . . . Piercing Weapon . | . . . Special Melee Weapon . | . . . Unidentified Prototypes . | . . . Parts Lost 9 | . . 9 Power 2 | . . 2 Propulsion 2 | . . 2 Utility 2 | . . 2 Weapon 3 | . . 3 Highest Loss Streak 9 | . . 9 To Critical Strikes . | . . . Average Slot Usage (%) 96 | . 89 99 Engine 13 | . 14 13 Wheel 28 | . 28 28 Storage 14 | . 14 14 Processor 11 | . 4 14 Ballistic Gun 26 | . 28 26 Launcher 1 | . . 1 Naked Turns . | . . . Heaviest Build 13 | 10 10 13 Greatest Support 32 | 32 32 32 Greatest Overweight (x) 2 | 2 . 1 Average Overweight (x) . | . . . Largest Inventory Capacity 8 | 8 8 8 Average Capacity 7 | 7 8 8 Most Carried 8 | 6 7 8 Average Carried 7 | 3 6 7 Final Capacity 8 | 8 8 5 Final Carried 7 | 6 7 5 Class Distribution -------------------- 100% | Mutant Dominant Class ---------------- Mutant | -10/Materials Mutant | -10/Mines Resources | -11 -10 -10 ----------- Run | Yrd Mat Min Matter Collected 270 | 260 . 10 Remotely . | . . . Salvage Created 29 | . . 29 Parts . | . . . Haulers Intercepted . | . . . Recyclers Shooed . | . . . Parts Field Recycled . | . . . Retrieved Matter . | . . . Parts Self-Destructed . | . . . Prevented . | . . . Kills | -11 -10 -10 ------- Run | Yrd Mat Min Combat Hostiles Destroyed 10 | . . 10 AOE 10 | . . 10 Classes Destroyed 1 | . . 1 Assembled 10 | . . 10 Best Kill Streak 10 | . . 10 Combat Bots Only 10 | . . 10 Max Kills in Single Turn 4 | . . 4 Gunslinging . | . . . Exploded 4 | . . 4 Melee . | . . . Uniques/NPCs Destroyed . | . . . Combat | -11 -10 -10 -------- Run | Yrd Mat Min Hostile Shots Fired 27 | . . 27 Missed 4 | . . 4 Damage Taken 829 | . . 829 Core 255 | . . 255 Absorbed by Shields . | . . . Core Remaining (%) 100 | 100 . . Volleys Fired 9 | . . 9 Largest 2 | . . 2 Hottest 60 | . . 60 Shots Fired 18 | . . 18 Gun 10 | . . 10 Cannon . | . . . Launcher 8 | . . 8 Special . | . . . Kinetic 9 | . . 9 Thermal 1 | . . 1 Explosive 8 | . . 8 Electromagnetic . | . . . Robot Hit Streak 4 | . . 4 Robot Miss Streak 2 | . . 2 Penetration Max . | . . . Secondary Targets . | . . . Shots Hit Robots 5 | . . 5 Core Hits 21 | . . 21 Critical Kills . | . . . Critical Parts Destroyed . | . . . Critical Strikes . | . . . Melee Attacks . | . . . Impact . | . . . Slashing . | . . . Piercing . | . . . Sneak Attacks . | . . . Combat Hostiles . | . . . Follow-up Attacks . | . . . Damage Inflicted 860 | . . 860 Guns 30 | . . 30 Cannons . | . . . Explosions 830 | . . 830 Melee . | . . . Ramming . | . . . Kinetic 20 | . . 20 Thermal 10 | . . 10 Explosive 830 | . . 830 Electromagnetic . | . . . Impact . | . . . Slashing . | . . . Piercing . | . . . Highest Corruption 4 | . . 4 Average Corruption 4 | . . 4 Corruption Purged . | . . . Corruption Blocked . | . . . Overload Shots . | . . . Overflow Damage 54 | . . 54 Projectiles . | . . . Explosions 54 | . . 54 Melee . | . . . Knockbacks . | . . . Impact . | . . . Kinetic . | . . . Secondary . | . . . Self-Inflicted Damage . | . . . Shots . | . . . Rammed . | . . . Targets Rammed . | . . . Kicked . | . . . Crushed . | . . . Highest Temperature 30 | . . 30 Average Temperature 9 | . . 9 Received Heat Transfer 26 | . . 26 Siege Activations . | . . . Robots Corrupted . | . . . Combat Hostiles . | . . . Parts Fried . | . . . Impact Corruptions . | . . . Robots Melted . | . . . Combat Hostiles . | . . . Parts Melted . | . . . Heat Transferred 25 | . . 25 Parts Sabotaged . | . . . Parts Stolen . | . . . Parts Stripped . | . . . Power Chain Reactions . | . . . Alert | -11 -10 -10 ------- Run | Yrd Mat Min Peak Influence 35 | . . 35 Initial . | . . . Average 1 | . . 2 Maximum Alert Level . | . . . Low Security (%) 100 | 100 100 100 Level 1 . | . . . Level 2 . | . . . Level 3 . | . . . Level 4 . | . . . Level 5 . | . . . High Security . | . . . Max Security . | . . . Squads Dispatched . | . . . Investigation . | . . . Extermination . | . . . Reinforcement . | . . . Assault . | . . . Garrison . | . . . Intercept . | . . . Searches Triggered . | . . . Construction Impeded . | . . . Haulers Reinforced . | . . . Active Scanning Responses . | . . . Cargo Convoy Interrupts . | . . . Stealth | -11 -10 -10 --------- Run | Yrd Mat Min Distress Signals . | . . . Communications Jammed . | . . . Distress Signals . | . . . Times Spotted 17 | . . 17 Peak Tracking Total 8 | . . 8 Tactical Retreats 1 | . . 1 Traps | -11 -10 -10 ------- Run | Yrd Mat Min Traps Triggered . | . . . Indirectly . | . . . Trap Hack Attempts . | . . . Triggered . | . . . Disarmed . | . . . Reprogrammed . | . . . Reused . | . . . Traps Extracted . | . . . Installed . | . . . Triggered . | . . . Machines | -11 -10 -10 ---------- Run | Yrd Mat Min Machines Disabled . | . . . Max in Single Turn . | . . . Machines Repaired . | . . . Machines Dismantled . | . . . Machines Sabotaged . | . . . Overloaded Fab Kills . | . . . Hacking | -11 -10 -10 --------- Run | Yrd Mat Min Machines Accessed . | . . . Terminals . | . . . Fabricators . | . . . Repair Stations . | . . . Recycling Units . | . . . Scanalyzers . | . . . Garrison Access . | . . . Total Hacks . | . . . Successful . | . . . Failed . | . . . Catastrophic . | . . . Database Lockouts . | . . . Manual . | . . . Terminals . | . . . Fabricators . | . . . Repair Stations . | . . . Recycling Units . | . . . Scanalyzers . | . . . Garrison Access . | . . . Terminal Hacks . | . . . Fabricator Hacks . | . . . Repair Station Hacks . | . . . Recycling Unit Hacks . | . . . Scanalyzer . | . . . Garrison Access Hacks . | . . . Unauthorized Hacks . | . . . Terminals . | . . . Fabricators . | . . . Repair Stations . | . . . Recycling Units . | . . . Scanalyzers . | . . . Garrison Access . | . . . Data Cores Recovered . | . . . Used . | . . . Hacking Detections . | . . . Full Trace Events . | . . . Feedback Events . | . . . Feedback Blocked . | . . . Robot Schematics Acquired . | . . . Robots Built . | . . . Authchips . | . . . Time . | . . . Total Robot Build Rating . | . . . Part Schematics Acquired . | . . . Parts Built . | . . . Authchips . | . . . Time . | . . . Total Part Build Rating . | . . . Parts Repaired . | . . . Time . | . . . Parts Recycled . | . . . Recycled Matter . | . . . Retrieved Matter . | . . . Retrieved Components . | . . . Parts Scanalyzed . | . . . Part Schematics Acquired . | . . . Parts Damaged . | . . . Bothacking | -11 -10 -10 ------------ Run | Yrd Mat Min Used RIF Installer . | . . . Robots Hacked . | . . . Non-combat . | . . . Combat . | . . . Robot Hacks Applied . | . . . Relay Couplers Released . | . . . Fabnet Peak Effective % . | . . . Robots Rewired . | . . . Allies Hacked . | . . . Hacks Repelled . | . . . Allies | -11 -10 -10 -------- Run | Yrd Mat Min Total Allies . | . . . Largest Group . | . . . Highest-Rated Group . | . . . Highest-Rated Ally . | . . . Total Orders . | . . . Ally Attacks . | . . . Total Damage . | . . . Kills . | . . . Allies Corrupted . | . . . Allies Melted . | . . . Intel | -11 -10 -10 ------- Run | Yrd Mat Min Robot Analysis Total . | . . . Derelict Logs Recovered . | . . . Drone Launches . | . . . Drone Recoveries . | . . . Exploration | -11 -10 -10 ------------- Run | Yrd Mat Min Turns Passed 397 | 53 104 240 Spaces Moved 350 | 38 102 210 Core 9 | 8 . 1 Treads . | . . . Legs . | . . . Wheels 341 | 30 102 209 Hover . | . . . Flight . | . . . Fastest Speed 50 | 50 100 100 Average Speed 100 | 102 100 100 Slowest Speed 150 | 150 100 100 Overloaded Moves . | . . . Propulsion Burnouts . | . . . Robots Hopped . | . . . Cave-ins Triggered 1 | . . 1 Exploration Rate (%) 22 | 3 14 51 Regions Visited 2 Branch Regions 1 Pre-discovered Areas 1 | . . 1 Known Exits Taken . | . . . Unknown Exits Taken 2 | 1 1 . Scrap Searched 1 | . . 1 Spaces Dug . | . . . Terrain Destroyed 74 | . . 74 Melee . | . . . Projectile . | . . . AOE 74 | . . 74 Terrain Rammed . | . . . Walls Destroyed . | . . . Machines Disabled . | . . . Actions | -11 -10 -10 --------- Run | Yrd Mat Min Total 376 | 49 103 224 Wait . | . . . Move 348 | 37 101 210 Hop . | . . . Pick Up 8 | 6 1 1 Fast Attach 7 | 6 1 . Attach 3 | . . 3 Detach . | . . . Swap 1 | . . 1 Drop . | . . . Fire 9 | . . 9 Melee . | . . . Ram . | . . . Kick . | . . . Crush . | . . . Escape Stasis . | . . . Rewire . | . . . Trap . | . . . Miscellaneous . | . . . Route ------- -11/Scrapyard -10/Materials -10/Mines History --------- Turn | Location | Event 16 | -11/Scrapyard | Discovered new exit (range 16) 54 | -11/Scrapyard | Entered Materials 71 | -10/Materials | Discovered new exit (range 15) 114 | -10/Materials | Met 8R-AWN 158 | -10/Materials | Entered Mines 159 | -10/Mines | Learned location of Storage (-9) 188 | -10/Mines | Received a Rocket Launcher from a helpful Derelict 309 | -10/Mines | Found a hidden stash of uninstalled traps 313 | -10/Mines | Build established: Mutant 360 | -10/Mines | Assembled infested the area 393 | -10/Mines | Core integrity fell below 50% 397 | -10/Mines | Crushed by falling debris 398 | -10/Mines | Destroyed by G-34 Mercenary with Small Laser Last Messages --------------- 00383_ C-30 ARC bursts open, deploying its payload. 00383_ D-53 Grenadier unfolds itself. 00384_ Lgt. Ion Engine destroyed. 00384_ Seismic Survey Station disabled. 00387_ The unstable cave ceiling collapses. 00390_ Lgt. Ion Engine destroyed. 00392_ Lgt. Assault Rifle destroyed. 00392_ Rocket Launcher destroyed. 00393_ Com. Wheel destroyed. 00393_ as-06039 destroyed. 00394_ The unstable cave ceiling collapses. 00396_ Knocked back. 00396_ as-66079 destroyed. 00397_ The unstable cave ceiling collapses. 00397_ Crushed by falling debris. 00397_ Visual Processing Unit destroyed. 00397_ System corrupted by crushing effect (+2). 00397_ Sml. Laser destroyed. 00397_ System corrupted by crushing effect (+2). 00398_ Sml. Storage Unit destroyed. Map ----- +----------------------------------------------------+ | ????????????????## ??????? ###????????????????? | | ????????????????# ??????? ?????????????????? | | ????????????????# ?????## #??????????????????? | | ?????????????????# ????## ##?????????????????? | | ?????????????????# ???## ##????????????????? | | ?????????????????# ##### ##???????????????? | | ??????????????????# ## """ #???????????????? | | ???????????????????# """ #???????????????? | | ?????????????####??# # """ ##???????????????? | | ?????????##### ##?# # ##????????????????? | | ????????## ### # ### ##?????????????????? | | ???????## # #?####??????????????????? | | ???????# # # ###??????????????????? | | ??????## ####### #??????????????????? | | ???#### ##?????# % #??????????????????? | | ??## ##??????# ##?????????????????? | | ### ##???????# #?????????????????? | | ####????????# ??????????????????? | | ##???????????# d #??????????????????? | | ### ##???????????# d #??????????????????? | | #?# #???????????# ???????????????????? | | ### #??????????## ###?????????????????? | | ??# ##??????????# ##????????????????? | | ??# ######???????# #????????????????? | | ??## #???????# #????????????????? | | ???### #### #???????# @ #????????????????? | | ?????# #??????"""g #????????????????? | | ?????# #?????# g # #????????????????? | | ?????# &##????### #??# a #???????????????? | | ????##& ##??????????## #???????????????? | | ???## & #???????????## ##???????????????? | | ??## #???????????# ###????????????????? | | ??# ##???????????## a #??????????????????? | | ??# ##????????????? ##??????????????????? | | ??# ##?????????????# a ???????????????????? | | ### ##?????????????? ???????????????????? | | #??????????????## # ??????????????????? | | ### #???????????????## ??????????????????? | | ??# #???????????????? #?????????????????? | | ??## #???????????????? #?????????????????? | | #??# #???????????????? ##?????????????????? | | ##?# #???????????????### ??????????????????? | | ### ####????####??????? ??????????????????? | | # ###### ##?????? ???????????????????? | | ## ##?????# ????????????????????? | | #?????????????????????????????? | | ##### #?????????????????????????????? | | ####???## #?????????????????????????????? | | #???????## #?????????????????????????????? | | ##???????## #????????????????????????????? | +----------------------------------------------------+ Best States ------------- Heat Dissipation 25 Energy Generation 10 Energy Capacity 125 Matter Stores 300 Matter Capacity 300 Sight Range 18 Terrain Scan Density 10 Evasion (%) 40 Item Schematics ----------------- None Robot Schematics ------------------ None Fabricated ------------ Nothing Alien Tech Used ----------------- None Achievements -------------- None Challenges ------------ None Game ------ Seed BombardmentHypercooledLog Manual? 0 Play Time 00:06:53 Cumulative 21.4 hours Start 2024.04.14 @ 16:39:24 End 2024.04.14 @ 16:43:54 Sessions 1 Manual Loads 0 Difficulty Rogue Special Mode None Game No. 27 Rogue 27 Adventurer 0 Explorer 0 Win Type - Total 0 Types 0/0/0/0/0/0/0/0/0 Lore% 7 Gallery% 22 Achievement% 16 Wizard Run 0 Options --------- Layout 1 ASCII 0 Keyboard 0 Movement Mouse Keybinds 0 Fullscreen 1 Font 18/SmallcapsGlow Map View 54x44 Zoom Use 0% Tactical HUD 1 Map Filters NONE Filters NONE Steam 0 RUN: b607424a-fec4-423a-a086-32cf4e25d405